[Event "Live Chess"]
[Site "Chess.com"]
[Date "2023.05.20"]
[Round "-"]
[White "RoaringKnights"]
[Black "Missedidea"]
[Result "0-1"]
[WhiteElo "991"]
[BlackElo "1658"]
[TimeControl "300"]
[EndTime "12:53:18 PDT"]
[Termination "Missedidea won by checkmate"]

1. e4 {[%clk 0:04:57.5]} 1... c5 {[%clk 0:04:55.8]} 2. Nf3 {[%clk 0:04:54.7]}
2... d6 {[%clk 0:04:54.5]} 3. Bc4 {[%clk 0:04:53.5]} 3... e6 {[%clk 0:04:51.9]}
4. d3 {[%clk 0:04:52.6]} 4... a6 {[%clk 0:04:50.5]} 5. e5 {[%clk 0:04:51.5]}
5... b5 {[%clk 0:04:47.9]} 6. Bb3 {[%clk 0:04:49]} 6... d5 {[%clk 0:04:44.2]} 7.
a4 {[%clk 0:04:43.9]} 7... c4 {[%clk 0:04:39.8]} 8. dxc4 {[%clk 0:04:42.4]} 8...
dxc4 {[%clk 0:04:37.7]} 9. Qxd8+ {[%clk 0:04:39.7]} 9... Kxd8 {[%clk 0:04:35.6]}
10. Ba2 {[%clk 0:04:34.8]} 10... Nc6 {[%clk 0:04:28.5]} 11. Nc3 {[%clk
0:04:33.4]} 11... b4 {[%clk 0:04:24]} 12. Ne2 {[%clk 0:04:29.6]} 12... Na5
{[%clk 0:04:11.4]} 13. Bg5+ {[%clk 0:04:20.4]} 13... Be7 {[%clk 0:04:06.9]} 14.
Bxe7+ {[%clk 0:04:18]} 14... Nxe7 {[%clk 0:04:01.4]} 15. Rd1+ {[%clk 0:04:15.1]}
15... Ke8 {[%clk 0:03:59.3]} 16. b3 {[%clk 0:04:13.4]} 16... c3 {[%clk
0:03:53.9]} 17. O-O {[%clk 0:04:08.4]} 17... Bb7 {[%clk 0:03:51]} 18. Nfd4
{[%clk 0:04:00.3]} 18... Nd5 {[%clk 0:03:41.7]} 19. Ng3 {[%clk 0:03:41.1]} 19...
Ke7 {[%clk 0:03:36.1]} 20. f4 {[%clk 0:03:39.2]} 20... g6 {[%clk 0:03:31.9]} 21.
Nf3 {[%clk 0:03:29.3]} 21... h6 {[%clk 0:03:25.9]} 22. Rfe1 {[%clk 0:03:17]}
22... Nxf4 {[%clk 0:03:21.6]} 23. Rd4 {[%clk 0:03:09]} 23... Nd5 {[%clk
0:03:19.6]} 24. Red1 {[%clk 0:03:02.6]} 24... Rad8 {[%clk 0:03:16.7]} 25. Ne2
{[%clk 0:02:53.5]} 25... g5 {[%clk 0:03:08.1]} 26. h3 {[%clk 0:02:49.7]} 26...
Rd7 {[%clk 0:02:54.9]} 27. h4 {[%clk 0:02:41.2]} 27... Rg8 {[%clk 0:02:46.7]}
28. hxg5 {[%clk 0:02:38.4]} 28... hxg5 {[%clk 0:02:45]} 29. Ng3 {[%clk
0:02:25.7]} 29... Nc6 {[%clk 0:02:38.6]} 30. R4d3 {[%clk 0:02:19.3]} 30... a5
{[%clk 0:02:35.7]} 31. Nh5 {[%clk 0:02:17.3]} 31... Nb8 {[%clk 0:02:22.7]} 32.
Nf6 {[%clk 0:02:15.6]} 32... Nxf6 {[%clk 0:02:19.5]} 33. exf6+ {[%clk
0:02:14.3]} 33... Ke8 {[%clk 0:02:15.1]} 34. Rxd7 {[%clk 0:01:59.9]} 34... Nxd7
{[%clk 0:02:13.3]} 35. Rd6 {[%clk 0:01:55.9]} 35... Nxf6 {[%clk 0:02:05.5]} 36.
Rb6 {[%clk 0:01:50]} 36... Bxf3 {[%clk 0:02:00.4]} 37. gxf3 {[%clk 0:01:48.2]}
37... g4 {[%clk 0:01:56]} 38. fxg4 {[%clk 0:01:44.8]} 38... Rxg4+ {[%clk
0:01:53.8]} 39. Kf2 {[%clk 0:01:43.7]} 39... Rg5 {[%clk 0:01:50.3]} 40. Rb8+
{[%clk 0:01:40]} 40... Ke7 {[%clk 0:01:47.4]} 41. Rb7+ {[%clk 0:01:36.8]} 41...
Kf8 {[%clk 0:01:44.5]} 42. Ke3 {[%clk 0:01:31.2]} 42... Rd5 {[%clk 0:01:38.9]}
43. Kf4 {[%clk 0:01:29.6]} 43... Nd7 {[%clk 0:01:32.6]} 44. Ke4 {[%clk
0:01:25.9]} 44... Ke7 {[%clk 0:01:25.9]} 45. Ra7 {[%clk 0:01:23.7]} 45... f5+
{[%clk 0:01:22.5]} 46. Ke3 {[%clk 0:01:20]} 46... Kf6 {[%clk 0:01:19.1]} 47. Kf4
{[%clk 0:01:17.6]} 47... e5+ {[%clk 0:01:16.2]} 48. Ke3 {[%clk 0:01:15.6]} 48...
Kg5 {[%clk 0:01:14.5]} 49. Kf3 {[%clk 0:01:09.3]} 49... e4+ {[%clk 0:01:09.3]}
50. Ke3 {[%clk 0:01:08.3]} 50... Ne5 {[%clk 0:01:07.5]} 51. Rg7+ {[%clk
0:01:03.8]} 51... Ng6 {[%clk 0:01:04.1]} 52. Ra7 {[%clk 0:00:59.7]} 52... Kf6
{[%clk 0:00:52.5]} 53. Ra6+ {[%clk 0:00:57.2]} 53... Kg5 {[%clk 0:00:50.2]} 54.
Bb1 {[%clk 0:00:54.7]} 54... Ne5 {[%clk 0:00:46]} 55. Ke2 {[%clk 0:00:51]} 55...
Kf4 {[%clk 0:00:44]} 56. Ke1 {[%clk 0:00:40.3]} 56... Ke3 {[%clk 0:00:40.6]} 57.
Ba2 {[%clk 0:00:36]} 57... f4 {[%clk 0:00:39.6]} 58. Bb1 {[%clk 0:00:34.2]}
58... f3 {[%clk 0:00:38.6]} 59. Ba2 {[%clk 0:00:32.8]} 59... f2+ {[%clk
0:00:37.1]} 60. Kf1 {[%clk 0:00:31.7]} 60... Rd1+ {[%clk 0:00:36.1]} 61. Kg2
{[%clk 0:00:30.3]} 61... f1=Q+ {[%clk 0:00:34.5]} 62. Kg3 {[%clk 0:00:29.2]}
62... Qf3+ {[%clk 0:00:31.2]} 63. Kh4 {[%clk 0:00:26.8]} 63... Qg4# {[%clk
0:00:29.2]} 0-1

[Event "Live Chess"]
[Site "Chess.com"]
[Date "2023.05.20"]
[Round "-"]
[White "GEMdzq"]
[Black "KeithArkell"]
[Result "0-1"]
[WhiteElo "2292"]
[BlackElo "2612"]
[TimeControl "300"]
[EndTime "12:53:19 PDT"]
[Termination "KeithArkell won by resignation"]

1. e4 {[%clk 0:04:57.8]} 1... c6 {[%clk 0:04:59.3]} 2. d4 {[%clk 0:04:56]} 2...
d5 {[%clk 0:04:56.7]} 3. e5 {[%clk 0:04:55.2]} 3... c5 {[%clk 0:04:56.1]} 4.
dxc5 {[%clk 0:04:53.2]} 4... Nc6 {[%clk 0:04:55.1]} 5. Bb5 {[%clk 0:04:47]} 5...
e6 {[%clk 0:04:52.6]} 6. Be3 {[%clk 0:04:44.3]} 6... Ne7 {[%clk 0:04:51]} 7. Nf3
{[%clk 0:04:40.4]} 7... Nf5 {[%clk 0:04:50.1]} 8. Bd4 {[%clk 0:04:39]} 8... Nxd4
{[%clk 0:04:45.9]} 9. Qxd4 {[%clk 0:04:28.6]} 9... Qa5+ {[%clk 0:04:44.7]} 10.
Nc3 {[%clk 0:04:27]} 10... Qxb5 {[%clk 0:04:43.7]} 11. Nxb5 {[%clk 0:04:25.6]}
11... Nxd4 {[%clk 0:04:43.1]} 12. Nfxd4 {[%clk 0:04:08.3]} 12... Bxc5 {[%clk
0:04:41.8]} 13. O-O-O {[%clk 0:04:03.1]} 13... Ke7 {[%clk 0:04:37.4]} 14. a3
{[%clk 0:03:51.3]} 14... Bd7 {[%clk 0:04:35.5]} 15. Nc3 {[%clk 0:03:48.8]} 15...
Rhc8 {[%clk 0:04:32.9]} 16. Rd3 {[%clk 0:03:35.8]} 16... a6 {[%clk 0:04:30.9]}
17. Rhd1 {[%clk 0:03:18.6]} 17... b5 {[%clk 0:04:29.5]} 18. b4 {[%clk
0:03:12.6]} 18... Bxd4 {[%clk 0:04:27.5]} 19. Nxd5+ {[%clk 0:03:07.3]} 19...
exd5 {[%clk 0:04:26.2]} 20. Rxd4 {[%clk 0:03:06.8]} 20... Be6 {[%clk 0:04:25.5]}
21. g4 {[%clk 0:03:02.6]} 21... g5 {[%clk 0:04:23.8]} 0-1

[Event "Live Chess"]
[Site "Chess.com"]
[Date "2023.05.20"]
[Round "-"]
[White "Duke_of_Bebington"]
[Black "mightysmasher"]
[Result "0-1"]
[WhiteElo "1608"]
[BlackElo "2120"]
[TimeControl "300"]
[EndTime "12:53:29 PDT"]
[Termination "mightysmasher won by checkmate"]

1. e4 {[%clk 0:04:58.5]} 1... e6 {[%clk 0:04:58.9]} 2. d4 {[%clk 0:04:56.9]}
2... d5 {[%clk 0:04:56.9]} 3. Nd2 {[%clk 0:04:56.3]} 3... dxe4 {[%clk
0:04:54.9]} 4. Nxe4 {[%clk 0:04:54.8]} 4... c5 {[%clk 0:04:54.4]} 5. Nf3 {[%clk
0:04:49.9]} 5... Nc6 {[%clk 0:04:53.2]} 6. Be3 {[%clk 0:04:46.3]} 6... Nf6
{[%clk 0:04:49.8]} 7. Nxc5 {[%clk 0:04:36.7]} 7... Bxc5 {[%clk 0:04:48]} 8. dxc5
{[%clk 0:04:36.6]} 8... Qa5+ {[%clk 0:04:47.1]} 9. c3 {[%clk 0:04:30.9]} 9...
O-O {[%clk 0:04:44.7]} 10. Bc4 {[%clk 0:04:21]} 10... Rd8 {[%clk 0:04:41.6]} 11.
Qe2 {[%clk 0:04:17.2]} 11... e5 {[%clk 0:04:39.4]} 12. Ng5 {[%clk 0:04:07.5]}
12... Bg4 {[%clk 0:04:30.9]} 13. f3 {[%clk 0:04:00]} 13... Bh5 {[%clk
0:04:29.5]} 14. O-O {[%clk 0:03:55.3]} 14... h6 {[%clk 0:04:27.7]} 15. Ne4
{[%clk 0:03:52.8]} 15... Nxe4 {[%clk 0:04:26.4]} 16. Bxf7+ {[%clk 0:03:46.1]}
16... Bxf7 {[%clk 0:04:23.8]} 17. fxe4 {[%clk 0:03:44]} 17... Qc7 {[%clk
0:04:22.8]} 18. b4 {[%clk 0:03:28.5]} 18... a6 {[%clk 0:04:21]} 19. a4 {[%clk
0:03:26.8]} 19... Bg6 {[%clk 0:04:18.6]} 20. Qg4 {[%clk 0:03:22.6]} 20... Kh7
{[%clk 0:04:16.6]} 21. b5 {[%clk 0:03:07.4]} 21... axb5 {[%clk 0:04:14.6]} 22.
axb5 {[%clk 0:03:07.3]} 22... Na5 {[%clk 0:04:13.7]} 23. b6 {[%clk 0:02:49.5]}
23... Qc6 {[%clk 0:04:11.8]} 24. Qh3 {[%clk 0:02:24.8]} 24... Qxe4 {[%clk
0:04:06]} 25. Rae1 {[%clk 0:02:23.1]} 25... Qc6 {[%clk 0:04:03.8]} 26. g4 {[%clk
0:02:15]} 26... Nc4 {[%clk 0:04:01.2]} 27. Bc1 {[%clk 0:02:12.6]} 27... Ra2
{[%clk 0:03:59.1]} 28. g5 {[%clk 0:02:07.9]} 28... Qxc5+ {[%clk 0:03:57.6]} 29.
Kh1 {[%clk 0:02:00.1]} 29... h5 {[%clk 0:03:56.2]} 30. Rg1 {[%clk 0:01:39.4]}
30... Qd5+ {[%clk 0:03:50.1]} 31. Rg2 {[%clk 0:01:37]} 31... Be4 {[%clk
0:03:47.3]} 32. Qxh5+ {[%clk 0:01:33.7]} 32... Kg8 {[%clk 0:03:45.9]} 33. Re2
{[%clk 0:01:15.3]} 33... Qd1+ {[%clk 0:03:42]} 34. Re1 {[%clk 0:01:10.4]} 34...
Qxe1# {[%clk 0:03:40.3]} 0-1

[Event "Live Chess"]
[Site "Chess.com"]
[Date "2023.05.20"]
[Round "-"]
[White "birdseed45"]
[Black "JoshMcK"]
[Result "1-0"]
[WhiteElo "1878"]
[BlackElo "1556"]
[TimeControl "300"]
[EndTime "12:53:32 PDT"]
[Termination "birdseed45 won by resignation"]

1. e4 {[%clk 0:04:58.1]} 1... c6 {[%clk 0:04:57.1]} 2. d4 {[%clk 0:04:55.8]}
2... d5 {[%clk 0:04:56.4]} 3. Nc3 {[%clk 0:04:55.3]} 3... dxe4 {[%clk
0:04:54.1]} 4. Nxe4 {[%clk 0:04:55.2]} 4... Nf6 {[%clk 0:04:53.2]} 5. Nxf6+
{[%clk 0:04:48.4]} 5... exf6 {[%clk 0:04:53.1]} 6. Nf3 {[%clk 0:04:48]} 6... Bd6
{[%clk 0:04:51.9]} 7. Bc4 {[%clk 0:04:47]} 7... O-O {[%clk 0:04:50]} 8. O-O
{[%clk 0:04:46.4]} 8... Bg4 {[%clk 0:04:47.6]} 9. h3 {[%clk 0:04:45.1]} 9...
Bxf3 {[%clk 0:04:46.1]} 10. Qxf3 {[%clk 0:04:43.2]} 10... Nd7 {[%clk 0:04:45.7]}
11. c3 {[%clk 0:04:41.5]} 11... Nb6 {[%clk 0:04:44.8]} 12. Bb3 {[%clk
0:04:40.6]} 12... Qc7 {[%clk 0:04:38.4]} 13. Be3 {[%clk 0:04:38.1]} 13... Bh2+
{[%clk 0:04:31.3]} 14. Kh1 {[%clk 0:04:36.3]} 14... Bd6 {[%clk 0:04:30.2]} 15.
c4 {[%clk 0:04:34.9]} 15... c5 {[%clk 0:04:21.8]} 16. d5 {[%clk 0:04:25.5]}
16... a5 {[%clk 0:04:15.1]} 17. Rac1 {[%clk 0:04:19.5]} 17... a4 {[%clk
0:04:12.9]} 18. Bd1 {[%clk 0:04:12.7]} 18... Nd7 {[%clk 0:04:10.8]} 19. Be2
{[%clk 0:04:01.7]} 19... Ne5 {[%clk 0:04:08.1]} 20. Qe4 {[%clk 0:03:59.4]} 20...
g6 {[%clk 0:04:00.2]} 21. Bh6 {[%clk 0:03:56.3]} 21... Rfe8 {[%clk 0:03:58.7]}
22. Qf4 {[%clk 0:03:50.1]} 22... f5 {[%clk 0:03:45]} 23. Qg5 {[%clk 0:03:40.4]}
23... Be7 {[%clk 0:03:38.9]} 24. Qd2 {[%clk 0:03:35.9]} 24... Bf6 {[%clk
0:03:34.2]} 25. Rfe1 {[%clk 0:03:32.3]} 25... Rad8 {[%clk 0:03:29.2]} 26. Bd3
{[%clk 0:03:22]} 26... Nxd3 {[%clk 0:03:24.5]} 27. Qxd3 {[%clk 0:03:21.9]} 27...
Bxb2 {[%clk 0:03:17.8]} 28. Rb1 {[%clk 0:03:19.9]} 28... Bd4 {[%clk 0:03:16.4]}
29. Rxe8+ {[%clk 0:03:06.7]} 29... Rxe8 {[%clk 0:03:16.3]} 30. Qf3 {[%clk
0:03:04.2]} 30... Bg7 {[%clk 0:03:07.5]} 31. Bg5 {[%clk 0:02:59.7]} 31... Be5
{[%clk 0:02:54.1]} 32. Qa3 {[%clk 0:02:48.4]} 32... f6 {[%clk 0:02:42.6]} 33.
Be3 {[%clk 0:02:45.5]} 33... Bd4 {[%clk 0:02:36]} 34. Qxa4 {[%clk 0:02:37.4]}
34... Re4 {[%clk 0:02:23.1]} 35. Qa8+ {[%clk 0:02:32.3]} 35... Kg7 {[%clk
0:02:19.8]} 36. Rxb7 {[%clk 0:02:28.6]} 1-0

[Event "Live Chess"]
[Site "Chess.com"]
[Date "2023.05.20"]
[Round "-"]
[White "manthanit"]
[Black "lateforthesky"]
[Result "0-1"]
[WhiteElo "1010"]
[BlackElo "2101"]
[TimeControl "300"]
[EndTime "12:53:40 PDT"]
[Termination "lateforthesky won by resignation"]

1. e4 {[%clk 0:04:57.4]} 1... c5 {[%clk 0:04:58.6]} 2. Ne2 {[%clk 0:04:54.8]}
2... d6 {[%clk 0:04:54.4]} 3. c4 {[%clk 0:04:54.2]} 3... e6 {[%clk 0:04:52.2]}
4. d4 {[%clk 0:04:53.4]} 4... cxd4 {[%clk 0:04:50.6]} 5. Nxd4 {[%clk 0:04:52.7]}
5... Nf6 {[%clk 0:04:49.7]} 6. Nc3 {[%clk 0:04:51.1]} 6... Be7 {[%clk
0:04:49.1]} 7. Bd3 {[%clk 0:04:49.3]} 7... O-O {[%clk 0:04:47.7]} 8. O-O {[%clk
0:04:48.4]} 8... Nbd7 {[%clk 0:04:45.6]} 9. h3 {[%clk 0:04:47.9]} 9... Nc5
{[%clk 0:04:40.9]} 10. Bc2 {[%clk 0:04:44.7]} 10... a5 {[%clk 0:04:23.9]} 11. b3
{[%clk 0:04:34.1]} 11... b6 {[%clk 0:04:21.3]} 12. Nc6 {[%clk 0:04:24.7]} 12...
Qc7 {[%clk 0:04:18.5]} 13. Nxe7+ {[%clk 0:04:23.9]} 13... Qxe7 {[%clk
0:04:17.7]} 14. Bg5 {[%clk 0:04:21.1]} 14... Rd8 {[%clk 0:04:11.7]} 15. Re1
{[%clk 0:03:48.1]} 15... Bb7 {[%clk 0:04:10.2]} 16. f3 {[%clk 0:03:44.6]} 16...
h6 {[%clk 0:04:07.3]} 17. Bh4 {[%clk 0:03:42.9]} 17... Ncd7 {[%clk 0:04:01.2]}
18. e5 {[%clk 0:03:31.4]} 18... Nxe5 {[%clk 0:03:54.4]} 19. f4 {[%clk 0:03:22]}
19... Ng6 {[%clk 0:03:48.4]} 20. Qd3 {[%clk 0:03:18]} 20... Nxh4 {[%clk
0:03:45.3]} 21. g3 {[%clk 0:02:50.1]} 21... Ng6 {[%clk 0:03:35.2]} 22. g4 {[%clk
0:02:46.3]} 22... Nxf4 {[%clk 0:03:27.4]} 23. Qh7+ {[%clk 0:02:36]} 23... Nxh7
{[%clk 0:03:25.8]} 24. Bxh7+ {[%clk 0:02:35.6]} 24... Kxh7 {[%clk 0:03:24.6]}
0-1

[Event "Live Chess"]
[Site "Chess.com"]
[Date "2023.05.20"]
[Round "-"]
[White "Andysav3"]
[Black "Greenbecker"]
[Result "1-0"]
[WhiteElo "1696"]
[BlackElo "1628"]
[TimeControl "300"]
[EndTime "12:53:42 PDT"]
[Termination "Andysav3 won by checkmate"]

1. e4 {[%clk 0:04:58.9]} 1... e6 {[%clk 0:04:59.1]} 2. c4 {[%clk 0:04:57]} 2...
d5 {[%clk 0:04:58.4]} 3. cxd5 {[%clk 0:04:56]} 3... exd5 {[%clk 0:04:57.7]} 4.
Qb3 {[%clk 0:04:55.5]} 4... Nf6 {[%clk 0:04:54.5]} 5. e5 {[%clk 0:04:54.3]} 5...
Qe7 {[%clk 0:04:49.8]} 6. d4 {[%clk 0:04:44.7]} 6... c6 {[%clk 0:04:44.2]} 7.
Nf3 {[%clk 0:04:36.5]} 7... Nbd7 {[%clk 0:04:38.8]} 8. Nc3 {[%clk 0:04:27.6]}
8... g6 {[%clk 0:04:32.5]} 9. Bg5 {[%clk 0:04:20.6]} 9... h6 {[%clk 0:04:29.1]}
10. Bh4 {[%clk 0:04:07.5]} 10... g5 {[%clk 0:04:26.8]} 11. Bg3 {[%clk
0:03:56.7]} 11... Nh5 {[%clk 0:04:25.1]} 12. O-O-O {[%clk 0:03:49.9]} 12... Nxg3
{[%clk 0:04:23.7]} 13. hxg3 {[%clk 0:03:48.5]} 13... Bg7 {[%clk 0:04:22.5]} 14.
Bd3 {[%clk 0:03:43.3]} 14... a5 {[%clk 0:04:10.4]} 15. Kb1 {[%clk 0:03:38.9]}
15... b5 {[%clk 0:04:07]} 16. Bxb5 {[%clk 0:03:30.3]} 16... cxb5 {[%clk
0:04:00.8]} 17. Nxd5 {[%clk 0:03:29.2]} 17... Qd8 {[%clk 0:03:56.2]} 18. Qxb5
{[%clk 0:03:23.3]} 18... O-O {[%clk 0:03:53.8]} 19. Qd3 {[%clk 0:03:14.5]} 19...
Ba6 {[%clk 0:03:49.3]} 20. Qe4 {[%clk 0:03:10]} 20... Rb8 {[%clk 0:03:35.6]} 21.
Nc3 {[%clk 0:02:53.8]} 21... Qc7 {[%clk 0:03:31.9]} 22. Nxg5 {[%clk 0:02:48.4]}
22... f5 {[%clk 0:03:19]} 23. exf6 {[%clk 0:02:40.6]} 23... Nxf6 {[%clk
0:03:17.9]} 24. Qe6+ {[%clk 0:02:38.3]} 24... Kh8 {[%clk 0:03:13.5]} 25. Nd5
{[%clk 0:02:19.3]} 25... Nxd5 {[%clk 0:02:37.3]} 26. Rxh6+ {[%clk 0:02:16.6]}
26... Bxh6 {[%clk 0:02:33.9]} 27. Qxh6+ {[%clk 0:02:15.4]} 27... Qh7+ {[%clk
0:02:31.2]} 28. Qxh7# {[%clk 0:02:12.8]} 1-0

[Event "Live Chess"]
[Site "Chess.com"]
[Date "2023.05.20"]
[Round "-"]
[White "Inglaterra"]
[Black "smoggyrabbit"]
[Result "1-0"]
[WhiteElo "2077"]
[BlackElo "1667"]
[TimeControl "300"]
[EndTime "12:53:43 PDT"]
[Termination "Inglaterra won on time"]

1. c4 {[%clk 0:04:57.7]} 1... e6 {[%clk 0:04:58.4]} 2. e3 {[%clk 0:04:55.7]}
2... f5 {[%clk 0:04:55.3]} 3. Nf3 {[%clk 0:04:53.2]} 3... Nf6 {[%clk 0:04:54.1]}
4. b3 {[%clk 0:04:51.9]} 4... b6 {[%clk 0:04:49]} 5. Bb2 {[%clk 0:04:50.9]} 5...
Bb7 {[%clk 0:04:48.3]} 6. d4 {[%clk 0:04:48.6]} 6... Be7 {[%clk 0:04:38.2]} 7.
Be2 {[%clk 0:04:44.9]} 7... O-O {[%clk 0:04:36.8]} 8. O-O {[%clk 0:04:43.1]}
8... d6 {[%clk 0:04:35.1]} 9. Nbd2 {[%clk 0:04:39.8]} 9... Ne4 {[%clk
0:04:32.6]} 10. Qc2 {[%clk 0:04:37]} 10... Nd7 {[%clk 0:04:26.4]} 11. b4 {[%clk
0:04:28.3]} 11... Ndf6 {[%clk 0:04:20.9]} 12. c5 {[%clk 0:04:23.3]} 12... dxc5
{[%clk 0:04:11]} 13. dxc5 {[%clk 0:04:19.5]} 13... bxc5 {[%clk 0:04:07.5]} 14.
Rfd1 {[%clk 0:04:12.5]} 14... Qe8 {[%clk 0:03:49.5]} 15. bxc5 {[%clk 0:03:57.3]}
15... Nxc5 {[%clk 0:03:21.8]} 16. Rab1 {[%clk 0:03:32.2]} 16... Rb8 {[%clk
0:03:01.6]} 17. Nc4 {[%clk 0:03:23]} 17... Be4 {[%clk 0:02:50.6]} 18. Qc1 {[%clk
0:02:54.8]} 18... Bxb1 {[%clk 0:02:47.7]} 19. Qxb1 {[%clk 0:02:53.5]} 19... Nce4
{[%clk 0:02:34.7]} 20. Qa1 {[%clk 0:02:45.3]} 20... Rd8 {[%clk 0:02:12.5]} 21.
Nd4 {[%clk 0:02:38]} 21... Bd6 {[%clk 0:01:25.9]} 22. Nxd6 {[%clk 0:02:27.8]}
22... Rxd6 {[%clk 0:01:20]} 23. Rc1 {[%clk 0:02:13.1]} 23... c6 {[%clk
0:00:59.5]} 24. Ba3 {[%clk 0:02:08.5]} 24... c5 {[%clk 0:00:52.1]} 25. Nf3
{[%clk 0:01:57.7]} 25... Rd8 {[%clk 0:00:28.7]} 26. Bc4 {[%clk 0:01:44]} 26...
Nd2 {[%clk 0:00:19.4]} 27. Nxd2 {[%clk 0:01:33.6]} 27... Rxd2 {[%clk 0:00:19.3]}
28. Qe5 {[%clk 0:01:29.2]} 28... Qd8 {[%clk 0:00:14.5]} 29. Qxe6+ {[%clk
0:01:19.5]} 29... Kh8 {[%clk 0:00:13.7]} 30. Bb3 {[%clk 0:01:18.3]} 30... Re8
{[%clk 0:00:12]} 31. Qxf5 {[%clk 0:01:14.6]} 31... Re2 {[%clk 0:00:09.5]} 32. g3
{[%clk 0:01:05.2]} 32... Qd2 {[%clk 0:00:08.1]} 33. Rd1 {[%clk 0:00:57.1]} 33...
Re1+ {[%clk 0:00:05.7]} 34. Rxe1 {[%clk 0:00:54.1]} 34... Qxe1+ {[%clk
0:00:05.6]} 35. Kg2 {[%clk 0:00:53.2]} 35... Qd2 {[%clk 0:00:01]} 36. Bxc5
{[%clk 0:00:49.7]} 1-0

[Event "Live Chess"]
[Site "Chess.com"]
[Date "2023.05.20"]
[Round "-"]
[White "Salpingidis"]
[Black "WelshTiger"]
[Result "0-1"]
[WhiteElo "2273"]
[BlackElo "2412"]
[TimeControl "300"]
[EndTime "12:53:45 PDT"]
[Termination "WelshTiger won by resignation"]

1. d4 {[%clk 0:04:54.9]} 1... d5 {[%clk 0:04:57.6]} 2. c4 {[%clk 0:04:53.7]}
2... e6 {[%clk 0:04:56.9]} 3. Nc3 {[%clk 0:04:52.4]} 3... c5 {[%clk 0:04:55.7]}
4. e3 {[%clk 0:04:50.5]} 4... a6 {[%clk 0:04:54]} 5. cxd5 {[%clk 0:04:48]} 5...
exd5 {[%clk 0:04:53.2]} 6. dxc5 {[%clk 0:04:46.6]} 6... Nf6 {[%clk 0:04:51.9]}
7. Nf3 {[%clk 0:04:43.9]} 7... Bxc5 {[%clk 0:04:50.2]} 8. Be2 {[%clk 0:04:41.4]}
8... Nc6 {[%clk 0:04:49]} 9. O-O {[%clk 0:04:40.9]} 9... O-O {[%clk 0:04:47.9]}
10. a3 {[%clk 0:04:40.4]} 10... d4 {[%clk 0:04:42.5]} 11. exd4 {[%clk
0:04:36.4]} 11... Nxd4 {[%clk 0:04:41.4]} 12. Nxd4 {[%clk 0:04:35.4]} 12... Qxd4
{[%clk 0:04:40.8]} 13. Qxd4 {[%clk 0:04:24.1]} 13... Bxd4 {[%clk 0:04:40.7]} 14.
Bg5 {[%clk 0:04:19.3]} 14... Be6 {[%clk 0:04:30.7]} 15. Rfd1 {[%clk 0:04:09.7]}
15... Rfd8 {[%clk 0:04:29.6]} 16. Bf3 {[%clk 0:04:05.5]} 16... Rab8 {[%clk
0:04:15.1]} 17. Rab1 {[%clk 0:04:00.2]} 17... b5 {[%clk 0:04:11.9]} 18. Ne4
{[%clk 0:03:55]} 18... Bf5 {[%clk 0:03:51.9]} 19. Nxf6+ {[%clk 0:03:47.4]} 19...
gxf6 {[%clk 0:03:50.7]} 20. Bf4 {[%clk 0:03:43.2]} 20... Rbc8 {[%clk 0:03:28.8]}
21. Rbc1 {[%clk 0:03:35.6]} 21... Bxb2 {[%clk 0:03:20.8]} 22. Rxd8+ {[%clk
0:03:18.3]} 22... Rxd8 {[%clk 0:03:18.4]} 23. Rc6 {[%clk 0:03:17.8]} 23... a5
{[%clk 0:03:09.4]} 24. h3 {[%clk 0:02:59.9]} 24... Kg7 {[%clk 0:02:55.1]} 25.
Rc5 {[%clk 0:02:50.8]} 25... Bd3 {[%clk 0:02:53.3]} 26. Bc7 {[%clk 0:02:45.6]}
26... Bxa3 {[%clk 0:02:43.7]} 27. Bxd8 {[%clk 0:02:39.3]} 27... Bxc5 {[%clk
0:02:42.3]} 28. Bxa5 {[%clk 0:02:38.9]} 28... b4 {[%clk 0:02:40.7]} 29. Bd5
{[%clk 0:02:37]} 29... Bc2 {[%clk 0:02:38.6]} 30. Bxb4 {[%clk 0:02:30.3]} 30...
Bxb4 {[%clk 0:02:37.1]} 31. g4 {[%clk 0:02:28.8]} 31... Bd6 {[%clk 0:02:34.3]}
32. Kg2 {[%clk 0:02:27.3]} 32... Ba4 {[%clk 0:02:33.3]} 33. h4 {[%clk 0:02:25]}
33... Bd7 {[%clk 0:02:32.7]} 34. f3 {[%clk 0:02:22.8]} 34... Be6 {[%clk
0:02:32.1]} 35. Be4 {[%clk 0:02:21]} 35... Bf4 {[%clk 0:02:31.7]} 36. h5 {[%clk
0:02:15.2]} 36... h6 {[%clk 0:02:31.2]} 37. Kf2 {[%clk 0:02:11.8]} 37... Kf8
{[%clk 0:02:30.9]} 38. Kg2 {[%clk 0:02:09.8]} 38... Ke7 {[%clk 0:02:30.5]} 39.
Kf2 {[%clk 0:02:07.9]} 39... Kd6 {[%clk 0:02:30.1]} 40. Ke2 {[%clk 0:02:06.4]}
40... Kc5 {[%clk 0:02:29.7]} 41. Kd3 {[%clk 0:02:05.8]} 41... Bc4+ {[%clk
0:02:28.6]} 42. Kc3 {[%clk 0:02:04.2]} 42... Bd5 {[%clk 0:02:27.5]} 43. Bd3
{[%clk 0:01:48.3]} 43... Bxf3 {[%clk 0:02:26.1]} 44. Bf5 {[%clk 0:01:47.4]}
44... Kd5 {[%clk 0:02:23.5]} 45. Kd3 {[%clk 0:01:46.3]} 45... Ke5 {[%clk
0:02:22.8]} 0-1

[Event "Live Chess"]
[Site "Chess.com"]
[Date "2023.05.20"]
[Round "-"]
[White "EdvancedChess"]
[Black "TheSmoulderingMaster"]
[Result "0-1"]
[WhiteElo "1890"]
[BlackElo "1743"]
[TimeControl "300"]
[EndTime "12:53:51 PDT"]
[Termination "TheSmoulderingMaster won by resignation"]

1. e4 {[%clk 0:04:59.8]} 1... c5 {[%clk 0:04:58.5]} 2. Nf3 {[%clk 0:04:59.3]}
2... d6 {[%clk 0:04:57.8]} 3. d4 {[%clk 0:04:59]} 3... cxd4 {[%clk 0:04:57.1]}
4. Nxd4 {[%clk 0:04:58.9]} 4... Nf6 {[%clk 0:04:56.4]} 5. Nc3 {[%clk 0:04:58.7]}
5... g6 {[%clk 0:04:55.2]} 6. Be3 {[%clk 0:04:58.3]} 6... Bg7 {[%clk 0:04:54.8]}
7. Qd2 {[%clk 0:04:58]} 7... O-O {[%clk 0:04:54]} 8. f3 {[%clk 0:04:57.5]} 8...
Nc6 {[%clk 0:04:53.4]} 9. O-O-O {[%clk 0:04:57.4]} 9... d5 {[%clk 0:04:52.3]}
10. exd5 {[%clk 0:04:56.1]} 10... Nxd5 {[%clk 0:04:50.5]} 11. Nxc6 {[%clk
0:04:55.5]} 11... bxc6 {[%clk 0:04:49.5]} 12. Nxd5 {[%clk 0:04:54.5]} 12... cxd5
{[%clk 0:04:49]} 13. Qxd5 {[%clk 0:04:53.9]} 13... Qc7 {[%clk 0:04:48.5]} 14.
Qxa8 {[%clk 0:04:52.6]} 14... Bf5 {[%clk 0:04:47]} 15. Qxf8+ {[%clk 0:04:52.5]}
15... Kxf8 {[%clk 0:04:44.5]} 16. Rd2 {[%clk 0:04:47.9]} 16... e6 {[%clk
0:04:39.7]} 17. Bd3 {[%clk 0:04:41.7]} 17... Qb7 {[%clk 0:04:35.7]} 18. Bc5+
{[%clk 0:04:33.4]} 18... Ke8 {[%clk 0:04:32.2]} 19. c3 {[%clk 0:04:27.1]} 19...
Bxd3 {[%clk 0:04:25.2]} 20. Rxd3 {[%clk 0:04:26]} 20... Qb5 {[%clk 0:04:18.8]}
21. Rhd1 {[%clk 0:04:19.9]} 21... Qxc5 {[%clk 0:04:16.5]} 22. Rd8+ {[%clk
0:04:18.9]} 22... Ke7 {[%clk 0:04:15.9]} 23. R1d7+ {[%clk 0:04:18.8]} 23... Kf6
{[%clk 0:04:14.8]} 24. Rxa7 {[%clk 0:04:16.1]} 0-1